fUST/lending_fUST_20251010
["ID","MTS","AMOUNT","RATE_DAILY","PERIOD"]
[390530816,1760075443024,-500.0,0.00016712,2]
[390530818,1760075443034,-151.0,0.00016712,2]
[390530820,1760075443043,-151.0,0.00016712,2]
[390530822,1760075443052,-500.0,0.00016712,2]
[390530824,1760075443061,-199.27098687,0.00016712,2]
[390530826,1760075443070,-151.0,0.00016712,2]
[390530828,1760075443079,-151.0,0.00016712,2]
[390530830,1760075443088,-500.0,0.00016712,2]
[390530832,1760075443098,-500.0,0.00016712,2]
[390530834,1760075443107,-151.0,0.00016712,2]
[390530836,1760075443116,-500.0,0.00016712,2]
[390530838,1760075443125,-151.0,0.00016712,2]
[390530840,1760075443134,-151.0,0.00016712,2]
[390530842,1760075443143,-500.0,0.00016712,2]
[390530844,1760075443152,-1012.82,0.00016712,2]
[390530846,1760075443162,-500.0,0.00016712,2]
[390530848,1760075443174,-1164.54,0.00016712,2]
[390530850,1760075443184,-151.0,0.00016712,2]
[390530852,1760075443194,-279.947969,0.00016712,2]
[390530854,1760075443203,-500.0,0.00016712,2]
[390530856,1760075443214,-500.0,0.00016712,2]
[390530858,1760075443223,-153.136736,0.00016712,2]
[390530860,1760075443232,-500.0,0.00016712,2]
[390530862,1760075443243,-502.85873749,0.00016712,2]
[390530865,1760075443258,-503.29990184,0.00016712,2]
[390530868,1760075443268,-500.0,0.00016712,2]
[390530870,1760075443277,-151.648283,0.00016712,2]
[390530872,1760075443287,-500.0,0.00016712,2]
[390530874,1760075443296,-1008.92,0.00016712,2]
[390530876,1760075443305,-910.4,0.00016712,2]
[390530878,1760075443314,-500.0,0.00016712,2]
[390530880,1760075443324,-500.0,0.00016712,2]
[390530882,1760075443333,-500.0,0.00016712,2]
[390530884,1760075443343,-164.54126561,0.00016712,2]
[390530886,1760075443353,-500.0,0.00016712,2]
[390530888,1760075443362,-500.0,0.00016712,2]
[390530890,1760075443372,-500.0,0.00016712,2]
[390530892,1760075443381,-500.0,0.00016712,2]
[390530894,1760075443390,-151.0,0.00016712,2]
[390530896,1760075443399,-151.0,0.00016712,2]
[390530897,1760075443408,-500.0,0.00016712,2]
[390530899,1760075443417,-500.0,0.00016712,2]
[390530901,1760075443426,-500.0,0.00016712,2]
[390530903,1760075443435,-509.76719434,0.00016712,2]
[390530905,1760075443444,-151.0,0.00016712,2]
[390530907,1760075443453,-500.0,0.00016712,2]
[390530909,1760075443462,-500.0,0.00016712,2]
[390530911,1760075443471,-152.979466,0.00016712,2]
[390530913,1760075443480,-151.0,0.00016712,2]
[390530915,1760075443490,-500.0,0.00016712,2]
[390530917,1760075443500,-500.0,0.00016712,2]
[390530919,1760075443509,-151.0,0.00016712,2]
[390530922,1760075443519,-335.28662782,0.00016712,2]
[390530924,1760075443528,-500.0,0.00016712,2]
[390530925,1760075443537,-500.0,0.00016712,2]
[390530927,1760075443546,-500.0,0.00016712,2]
[390530930,1760075443555,-500.0,0.00016712,2]
[390530931,1760075443564,-500.0,0.00016712,2]
[390530933,1760075443573,-500.0,0.00016712,2]
[390530935,1760075443582,-500.0,0.00016712,2]
[390530937,1760075443592,-151.0,0.00016712,2]
[390530939,1760075443601,-151.0,0.00016712,2]
[390530941,1760075443610,-500.0,0.00016712,2]
[390530943,1760075443620,-500.0,0.00016712,2]
[390530945,1760075443630,-151.0,0.00016712,2]
[390530947,1760075443645,-500.0,0.00016712,2]
[390530949,1760075443655,-288.254273,0.00016712,2]
[390530951,1760075443665,-500.0,0.00016712,2]
[390530953,1760075443676,-500.0,0.00016712,2]
[390530955,1760075443687,-1034.78,0.00016712,2]
[390530957,1760075443698,-247.62573965,0.00016712,2]
[390530959,1760075443708,-500.0,0.00016712,2]
[390530961,1760075443719,-500.0,0.00016712,2]
[390530963,1760075443728,-500.0,0.00016712,2]
[390530965,1760075443737,-500.0,0.00016712,2]
[390530967,1760075443746,-500.0,0.00016712,2]
[390530969,1760075443755,-151.0,0.00016712,2]
[390530971,1760075443765,-189.113488,0.00016712,2]
[390530973,1760075443774,-500.0,0.00016712,2]
[390530975,1760075443783,-503.80566,0.00016712,2]
[390530977,1760075443792,-1248.6,0.00016712,2]
[390530979,1760075443801,-151.0,0.00016712,2]
[390530981,1760075443810,-944.55,0.00016712,2]
[390530983,1760075443821,-500.0,0.00016712,2]
[390530985,1760075443830,-500.0,0.00016712,2]
[390530987,1760075443840,-151.0,0.00016712,2]
[390530989,1760075443849,-500.0,0.00016712,2]
[390530991,1760075443858,-151.0,0.00016712,2]
[390530993,1760075443867,-500.0,0.00016712,2]
[390530995,1760075443877,-500.0,0.00016712,2]
[390530997,1760075443886,-500.0,0.00016712,2]
[390530999,1760075443895,-505.39857899,0.00016712,2]
[390531001,1760075443905,-508.48,0.00016712,2]
[390531003,1760075443914,-500.0,0.00016712,2]
[390531005,1760075443923,-500.0,0.00016712,2]
[390531007,1760075443932,-7538.27,0.00016712,2]
[390531009,1760075443941,-500.0,0.00016712,2]
[390531011,1760075443950,-500.0,0.00016712,2]
[390531013,1760075443960,-500.0,0.00016712,2]
[390531015,1760075443970,-500.0,0.00016712,2]
[390531017,1760075443979,-500.0,0.00016712,2]
[390531019,1760075443988,-500.0,0.00016712,2]
[390531021,1760075443997,-500.0,0.00016712,2]
[390531023,1760075444006,-500.0,0.00016712,2]
[390531025,1760075444015,-500.0,0.00016712,2]
[390531026,1760075444024,-500.0,0.00016712,2]
[390531028,1760075444032,-500.0,0.00016712,2]
[390531031,1760075444043,-569.11,0.00016712,2]
[390531032,1760075444052,-500.0,0.00016712,2]
[390531034,1760075444061,-152.357197,0.00016712,2]
[390531036,1760075444070,-500.0,0.00016712,2]
[390531038,1760075444080,-500.0,0.00016712,2]
[390531040,1760075444089,-2089.95,0.00016712,2]
[390531042,1760075444098,-650.77,0.00016712,2]
[390531045,1760075444108,-151.0,0.00016712,2]
[390531046,1760075444117,-500.0,0.00016712,2]
[390531049,1760075444126,-500.0,0.00016712,2]
[390531050,1760075444135,-242.78753328,0.00016712,2]
[390531052,1760075444152,-585.13614732,0.00016712,2]
[390531054,1760075444161,-500.0,0.00016712,2]
[390531057,1760075444170,-152.003691,0.00016712,2]
[390531059,1760075444180,-1840.93,0.00016712,2]
[390531060,1760075444189,-500.0,0.00016712,2]
[390531062,1760075444198,-500.0,0.00016712,2]
[390531064,1760075444208,-500.0,0.00016712,2]
[390531066,1760075444217,-500.0,0.00016712,2]
[390531068,1760075444226,-500.0,0.00016712,2]
[390531070,1760075444235,-500.0,0.00016712,2]
[390531072,1760075444244,-502.87965002,0.00016712,2]
[390531074,1760075444255,-500.0,0.00016712,2]
[390531076,1760075444264,-500.0,0.00016712,2]
[390531078,1760075444274,-500.0,0.00016712,2]
[390531080,1760075444282,-500.0,0.00016712,2]
[390531082,1760075444292,-500.0,0.00016712,2]
[390531084,1760075444312,-500.0,0.00016712,2]
[390531086,1760075444322,-500.0,0.00016712,2]
[390531088,1760075444331,-151.0,0.00016712,2]
[390531090,1760075444340,-500.0,0.00016712,2]
[390531091,1760075444347,-500.0,0.00016712,2]
[390531092,1760075444355,-5214.0,0.00016712,2]
[390531093,1760075444363,-501.76680069,0.00016712,2]
[390531094,1760075444370,-500.0,0.00016712,2]
[390531095,1760075444378,-500.0,0.00016712,2]
[390531096,1760075444386,-862.84,0.00016712,2]
[390531097,1760075444393,-500.0,0.00016712,2]
[390531098,1760075444401,-440.26320699,0.00016712,2]
[390531099,1760075444409,-500.0,0.00016712,2]
[390531100,1760075444416,-500.0,0.00016712,2]
[390531101,1760075444424,-500.0,0.00016712,2]
[390531102,1760075444433,-501.49543512,0.00016712,2]
[390531104,1760075444442,-500.0,0.00016712,2]
[390531106,1760075444451,-500.0,0.00016712,2]
[390531108,1760075444461,-189.29873602,0.00016712,2]
[390531110,1760075444469,-500.0,0.00016712,2]
[390531112,1760075444478,-552.2,0.00016712,2]
[390531114,1760075444488,-740.89,0.00016712,2]
[390531116,1760075444497,-501.4714528,0.00016712,2]
[390531118,1760075444506,-500.0,0.00016712,2]
[390531121,1760075444515,-252.52752145,0.00016712,2]
[390531123,1760075444524,-962.61,0.00016712,2]
[390531124,1760075444533,-500.0,0.00016712,2]
[390531126,1760075444542,-1041.2,0.00016712,2]
[390531129,1760075444551,-500.0,0.00016712,2]
[390531130,1760075444560,-500.0,0.00016712,2]
[390531132,1760075444569,-500.0,0.00016712,2]
[390531135,1760075444579,-500.0,0.00016712,2]
[390531136,1760075444588,-500.0,0.00016712,2]
[390531139,1760075444598,-500.0,0.00016712,2]
[390531140,1760075444608,-1384.52,0.00016712,2]
[390531142,1760075444617,-500.0,0.00016712,2]
[390531144,1760075444626,-500.0,0.00016712,2]
[390531147,1760075444635,-1601.78,0.00016712,2]
[390531148,1760075444648,-501.36818589,0.00016712,2]
[390531151,1760075444658,-500.0,0.00016712,2]
[390531153,1760075444667,-500.0,0.00016712,2]
[390531154,1760075444677,-500.0,0.00016712,2]
[390531156,1760075444687,-500.0,0.00016712,2]
[390531158,1760075444695,-500.0,0.00016712,2]
[390531160,1760075444705,-848.24,0.00016712,2]
[390531162,1760075444716,-500.0,0.00016712,2]
[390531164,1760075444725,-2230.39,0.00016712,2]
[390531166,1760075444734,-500.0,0.00016712,2]
[390531168,1760075444743,-500.0,0.00016712,2]
[390531170,1760075444752,-1169.5,0.00016712,2]
[390531172,1760075444761,-222.46611655,0.00016712,2]
[390531174,1760075444771,-5549.11,0.00016712,2]
[390531176,1760075444780,-153.16741,0.00016712,2]
[390531179,1760075444789,-500.0,0.00016712,2]
[390531181,1760075444798,-500.0,0.00016712,2]
[390531183,1760075444807,-562.56,0.00016712,2]
[390531185,1760075444816,-500.0,0.00016712,2]
[390531187,1760075444825,-151.0,0.00016712,2]
[390531189,1760075444835,-500.0,0.00016712,2]
[390531191,1760075444844,-500.0,0.00016712,2]
[390531192,1760075444853,-501.09598001,0.00016712,2]
[390531194,1760075444862,-500.0,0.00016712,2]
[390531197,1760075444871,-3860.03,0.00016712,2]
[390531198,1760075444881,-500.0,0.00016712,2]
[390531201,1760075444891,-3394.74,0.00016712,2]
[390531202,1760075444900,-500.0,0.00016712,2]
[390531204,1760075444910,-606.57,0.00016712,2]
[390531206,1760075444919,-500.0,0.00016712,2]
[390531209,1760075444928,-500.0,0.00016712,2]
[390531211,1760075444937,-500.0,0.00016712,2]
[390531213,1760075444948,-1039.86,0.00016712,2]
[390531215,1760075444958,-500.0,0.00016712,2]
[390531216,1760075444967,-500.0,0.00016712,2]
[390531219,1760075444976,-743.13,0.00016712,2]
[390531221,1760075444985,-500.0,0.00016712,2]
[390531223,1760075444994,-500.0,0.00016712,2]
[390531224,1760075445003,-500.0,0.00016712,2]
[390531227,1760075445012,-555.02,0.00016712,2]
[390531229,1760075445021,-741.68,0.00016712,2]
[390531231,1760075445030,-5382.86,0.00016712,2]
[390531233,1760075445040,-1438.37,0.00016712,2]
[390531235,1760075445049,-500.0,0.00016712,2]
[390531237,1760075445058,-500.0,0.00016712,2]
[390531239,1760075445067,-500.0,0.00016712,2]
[390531240,1760075445076,-500.0,0.00016712,2]
[390531242,1760075445086,-500.0,0.00016712,2]
[390531245,1760075445095,-500.0,0.00016712,2]
[390531247,1760075445104,-823.2,0.00016712,2]
[390531248,1760075445114,-500.0,0.00016712,2]
[390531251,1760075445123,-500.0,0.00016712,2]
[390531253,1760075445132,-2777.88,0.00016712,2]
[390531254,1760075445141,-500.0,0.00016712,2]
[390531256,1760075445151,-500.0,0.00016712,2]
[390531258,1760075445161,-893.45,0.00016712,2]
[390531260,1760075445170,-500.0,0.00016712,2]
[390531262,1760075445179,-500.0,0.00016712,2]
[390531264,1760075445189,-500.0,0.00016712,2]
[390531266,1760075445198,-500.0,0.00016712,2]
[390531268,1760075445207,-500.0,0.00016712,2]
[390531270,1760075445216,-1284.1,0.00016712,2]
[390531272,1760075445225,-500.0,0.00016712,2]
[390531274,1760075445234,-151.824686,0.00016712,2]
[390531276,1760075445243,-500.0,0.00016712,2]
[390531278,1760075445252,-500.0,0.00016712,2]
[390531280,1760075445261,-500.0,0.00016712,2]
[390531282,1760075445270,-500.0,0.00016712,2]
[390531284,1760075445279,-4055.36,0.00016712,2]
[390531286,1760075445288,-1201.21,0.00016712,2]
[390531288,1760075445298,-178.82930979,0.00016712,2]
[390531290,1760075445307,-500.0,0.00016712,2]
[390531292,1760075445316,-500.0,0.00016712,2]
[390531294,1760075445325,-760.77,0.00016712,2]
[390531296,1760075445334,-778.03,0.00016712,2]
[390531298,1760075445344,-500.0,0.00016712,2]
[390531300,1760075445352,-500.0,0.00016712,2]
[390531302,1760075445362,-153.062202,0.00016712,2]
[390531304,1760075445371,-748.96,0.00016712,2]
[390531306,1760075445382,-500.0,0.00016712,2]
[390531308,1760075445391,-500.0,0.00016712,2]
[390531310,1760075445400,-500.0,0.00016712,2]
[390531313,1760075445410,-500.0,0.00016712,2]
[390531314,1760075445419,-719.93,0.00016712,2]
[390531317,1760075445429,-500.0,0.00016712,2]
[390531318,1760075445439,-500.0,0.00016712,2]
[390531321,1760075445448,-659.76,0.00016712,2]
[390531322,1760075445458,-2004.02,0.00016712,2]
[390531324,1760075445466,-500.0,0.00016712,2]
[390531326,1760075445475,-930.27,0.00016712,2]
[390531328,1760075445484,-500.0,0.00016712,2]
[390531330,1760075445493,-500.0,0.00016712,2]
[390531332,1760075445502,-500.0,0.00016712,2]
[390531334,1760075445511,-1137.66,0.00016712,2]
[390531336,1760075445519,-500.0,0.00016712,2]
[390531338,1760075445528,-500.0,0.00016712,2]
[390531340,1760075445537,-502.97479486,0.00016712,2]
[390531342,1760075445546,-500.0,0.00016712,2]
[390531361,1760075445702,-608.31,0.00016712,2]
[390531363,1760075445712,-504.06460321,0.00016712,2]
[390531365,1760075445723,-500.44093117,0.00016712,2]
[390531367,1760075445732,-500.0,0.00016712,2]
[390531369,1760075445741,-500.0,0.00016712,2]
[390531371,1760075445750,-500.66305719,0.00016712,2]
[390531373,1760075445759,-151.638751,0.00016712,2]
[390531375,1760075445768,-500.0,0.00016712,2]
[390531377,1760075445779,-3455.69,0.00016712,2]
[390531379,1760075445788,-930.46,0.00016712,2]
[390531381,1760075445797,-500.0,0.00016712,2]
[390531383,1760075445806,-1292.37,0.00016712,2]
[390531385,1760075445815,-500.0,0.00016712,2]
[390531387,1760075445825,-500.0,0.00016712,2]
[390531389,1760075445834,-959.68,0.00016712,2]
[390531391,1760075445844,-500.0,0.00016712,2]
[390531393,1760075445853,-643.0,0.00016712,2]
[390531395,1760075445862,-502.03919439,0.00016712,2]
[390531397,1760075445871,-1776.38,0.00016712,2]
[390531399,1760075445880,-500.0,0.00016712,2]
[390531401,1760075445889,-500.0,0.00016712,2]
[390531403,1760075445899,-3245.44,0.00016712,2]
[390531405,1760075445909,-500.0,0.00016712,2]
[390531407,1760075445919,-500.0,0.00016712,2]
[390531409,1760075445928,-500.0,0.00016712,2]
[390531411,1760075445936,-500.0,0.00016712,2]
[390531413,1760075445946,-727.88,0.00016712,2]
[390531415,1760075445955,-503.11882151,0.00016712,2]
[390531417,1760075445963,-1540.77,0.00016712,2]
[390531419,1760075445972,-500.0,0.00016712,2]
[390531421,1760075445981,-500.0,0.00016712,2]
[390531423,1760075445990,-500.0,0.00016712,2]
[390531425,1760075446000,-500.0,0.00016712,2]
[390531427,1760075446009,-500.0,0.00016712,2]
[390531429,1760075446019,-500.0,0.00016712,2]
[390531432,1760075446028,-500.0,0.00016712,2]
[390531434,1760075446037,-500.0,0.00016712,2]
[390531435,1760075446046,-500.0,0.00016712,2]
[390531437,1760075446055,-151.0,0.00016712,2]
[390531440,1760075446064,-500.0,0.00016712,2]
[390531442,1760075446074,-500.0,0.00016712,2]
[390531443,1760075446083,-500.0,0.00016712,2]
[390531445,1760075446092,-500.0,0.00016712,2]
[390531448,1760075446101,-168.0,0.00016729,2]
[390531450,1760075446110,-168.0,0.0001673,2]
[390531452,1760075446119,-2608.0,0.00016733,2]
[390531453,1760075446128,-151.0,0.00016733,2]
[390531456,1760075446139,-2608.0,0.00016736,2]
[390531458,1760075446150,-300.0,0.00016766,2]
[390531460,1760075446159,-300.0,0.00016766,2]
[390531462,1760075446168,-300.0,0.00016766,2]
[390531464,1760075446178,-300.0,0.00016766,2]
[390531466,1760075446187,-300.0,0.00016766,2]
[390531468,1760075446196,-300.0,0.00016766,2]
[390531470,1760075446205,-300.0,0.00016766,2]
[390531472,1760075446213,-300.0,0.00016766,2]
[390531474,1760075446223,-300.0,0.00016766,2]
[390531476,1760075446232,-300.0,0.00016766,2]
[390531477,1760075446241,-300.0,0.00016766,2]
[390531480,1760075446251,-300.0,0.00016766,2]
[390531482,1760075446260,-300.0,0.00016766,2]
[390531483,1760075446269,-300.0,0.00016766,2]
[390531485,1760075446279,-300.0,0.00016766,2]
[390531488,1760075446288,-600.0,0.00016766,2]
[390531489,1760075446297,-308.55715187,0.00016767,3]
[390531491,1760075446306,-500.0,0.00016773,2]
[390531493,1760075446315,-500.0,0.00016773,2]
[390531496,1760075446324,-214.21809975,0.00016773,2]
[390531498,1760075446334,-500.0,0.00016773,2]
[390531500,1760075446347,-500.0,0.00016773,2]
[390531501,1760075446356,-500.34845163,0.00016773,2]
[390531503,1760075446365,-500.0,0.00016773,2]
[390531505,1760075446374,-500.0,0.00016773,2]
[390531508,1760075446384,-500.0,0.00016773,2]
[390531510,1760075446393,-500.0,0.00016773,2]
[390531512,1760075446402,-500.0,0.00016773,2]
[390531513,1760075446411,-500.0,0.00016773,2]
[390531515,1760075446420,-500.0,0.00016773,2]
[390531517,1760075446429,-500.0,0.00016773,2]
[390531520,1760075446438,-500.0,0.00016773,2]
[390531522,1760075446447,-500.0,0.00016773,2]
[390531524,1760075446457,-500.0,0.00016773,2]
[390531525,1760075446465,-500.0,0.00016773,2]
[390531528,1760075446475,-500.0,0.00016773,2]
[390531530,1760075446483,-500.0,0.00016773,2]
[390531532,1760075446493,-500.0,0.00016773,2]
[390531533,1760075446502,-500.0,0.00016773,2]
[390531536,1760075446511,-500.0,0.00016773,2]
[390531537,1760075446520,-500.0,0.00016773,2]
[390531539,1760075446529,-500.0,0.00016773,2]
[390531541,1760075446538,-234.591519,0.000168,6]
[390531543,1760075446547,-168.0,0.00016807,2]
[390531545,1760075446556,-1161.678153,0.00016886,2]
[390531548,1760075446565,-261.392589,0.00016914,2]
[390531549,1760075446574,-244.097566,0.00016914,2]
[390531552,1760075446583,-3456.76874029,0.00016914,2]
[390531554,1760075446592,-500.0,0.00016973,2]
[390531556,1760075446601,-500.0,0.00016973,2]
[390531558,1760075446610,-642.55581265,0.00016973,2]
[390531560,1760075446619,-500.0,0.00016973,2]
[390531562,1760075446628,-19292.2273969,0.00016976,2]
[390531563,1760075446637,-1598.3195108,0.00016977,2]
[390531565,1760075446649,-836.5697313,0.00016977,2]
[390531567,1760075446659,-9314.570329,0.00016977,2]
[390531569,1760075446668,-499.8581174,0.00016977,2]
[390531571,1760075446677,-155.037749,0.00016977,2]
[390531573,1760075446689,-151.0,0.00016977,2]
[390531576,1760075446699,-151.0,0.00016977,2]
[390531578,1760075446708,-16021.2588949,0.00016977,2]
[390531579,1760075446718,-500.0,0.00016986,2]
[390531582,1760075446728,-299.00488647,0.00016986,2]
[390531584,1760075446737,-500.0,0.00016986,2]
[390531586,1760075446746,-500.0,0.00016986,2]
[390531587,1760075446755,-500.0,0.00016986,2]
[390531589,1760075446764,-614.58,0.00016986,2]
[390531591,1760075446773,-375.81580885,0.00016986,2]
[390531593,1760075446782,-500.0,0.00016986,2]
[390531595,1760075446791,-200.0,0.00016986,2]
[390531598,1760075446800,-500.0,0.00016986,2]
[390531600,1760075446810,-500.0,0.00016986,2]
[390531602,1760075446818,-500.0,0.00016986,2]
[390531603,1760075446827,-500.0,0.00016986,2]
[390531606,1760075446837,-500.0,0.00016986,2]
[390531607,1760075446846,-500.0,0.00016986,2]
[390531610,1760075446855,-505.26,0.00016986,2]
[390531612,1760075446865,-500.0,0.00016986,2]
[390531614,1760075446873,-1227.4,0.00016986,2]
[390531616,1760075446883,-500.0,0.00016986,2]
[390531618,1760075446892,-500.0,0.00016986,2]
[390531620,1760075446902,-151.0,0.00016986,2]
[390531622,1760075446910,-151.0,0.00016986,2]
[390531624,1760075446919,-151.0,0.00016986,2]
[390531626,1760075446928,-151.555572,0.00016986,2]
[390531628,1760075446937,-500.0,0.00016986,2]
[390531630,1760075446948,-504.79304014,0.00016986,2]
[390531632,1760075446957,-500.0,0.00016986,2]
[390531634,1760075446966,-588.55,0.00016986,2]
[390531636,1760075446976,-1061.42,0.00016986,2]
[390531638,1760075446984,-500.0,0.00016986,2]
[390531640,1760075446993,-500.0,0.00016986,2]
[390531642,1760075447002,-500.0,0.00016986,2]
[390531644,1760075447011,-576.64651153,0.00016986,2]
[390531646,1760075447020,-500.0,0.00016986,2]
[390531648,1760075447029,-500.0,0.00016986,2]
[390531650,1760075447038,-500.00000001,0.00016986,2]
[390531652,1760075447047,-500.0,0.00016986,2]
[390531654,1760075447056,-781.97,0.00016986,2]
[390531656,1760075447065,-500.0,0.00016986,2]
[390531658,1760075447074,-500.0,0.00016986,2]
[390531660,1760075447084,-154.80812956,0.00016986,2]
[390531662,1760075447092,-500.0,0.00016986,2]
[390531663,1760075447101,-500.0,0.00016986,2]
[390531665,1760075447110,-503.5626042,0.00016986,2]
[390531667,1760075447119,-500.0,0.00016986,2]
[390531669,1760075447128,-502.4887335,0.00016986,2]
[390531671,1760075447137,-156.88579155,0.00016986,2]
[390531673,1760075447146,-500.0,0.00016986,2]
[390531675,1760075447156,-500.0,0.00016986,2]
[390531678,1760075447166,-500.0,0.00016986,2]
[390531680,1760075447174,-151.0,0.00016986,2]
[390531682,1760075447183,-151.0,0.00016986,2]
[390531683,1760075447193,-500.0,0.00016986,2]
[390531686,1760075447202,-154.020421,0.00016986,2]
[390531688,1760075447211,-151.0,0.00016986,2]
[390531690,1760075447223,-500.0,0.00016986,2]
[390531692,1760075447232,-500.0,0.00016986,2]
[390531694,1760075447241,-151.0,0.00016986,2]
[390531696,1760075447250,-152.507168,0.00016986,2]
[390531698,1760075447259,-240.5526988,0.00016986,2]
[390531700,1760075447268,-151.0,0.00016986,2]
[390531702,1760075447277,-151.0,0.00016986,2]
[390531704,1760075447286,-151.0,0.00016986,2]
[390531706,1760075447295,-500.0,0.00016986,2]
[390531708,1760075447304,-1012.82,0.00016986,2]
[390531710,1760075447313,-500.0,0.00016986,2]
[390531712,1760075447322,-1164.54,0.00016986,2]
[390531714,1760075447331,-151.0,0.00016986,2]
[390531716,1760075447340,-151.0,0.00016986,2]
[390531718,1760075447349,-500.0,0.00016986,2]
[390531720,1760075447358,-500.0,0.00016986,2]
[390531722,1760075447367,-500.0,0.00016986,2]
[390531724,1760075447376,-500.0,0.00016986,2]
[390531725,1760075447385,-1008.92,0.00016986,2]
[390531728,1760075447395,-910.4,0.00016986,2]
[390531730,1760075447404,-500.0,0.00016986,2]
[390531732,1760075447413,-583.71909316,0.00016986,2]
[390531734,1760075447422,-500.0,0.00016986,2]
[390531736,1760075447431,-500.0,0.00016986,2]
[390531738,1760075447440,-500.0,0.00016986,2]
[390531740,1760075447449,-500.0,0.00016986,2]
[390531742,1760075447458,-151.0,0.00016986,2]
[390531744,1760075447466,-151.0,0.00016986,2]
[390531746,1760075447476,-500.0,0.00016986,2]
[390531748,1760075447485,-152.319799,0.00016986,2]
[390531750,1760075447494,-500.0,0.00016986,2]
[390531751,1760075447503,-234.591519,0.00016986,2]
[390531753,1760075447512,-151.0,0.00016986,2]
[390531755,1760075447522,-500.0,0.00016986,2]
[390531758,1760075447531,-151.0,0.00016986,2]
[390531760,1760075447540,-502.11849293,0.00016986,2]
[390531762,1760075447549,-504.39754967,0.00016986,2]
[390531764,1760075447559,-500.0,0.00016986,2]
[390531766,1760075447568,-500.0,0.00016986,2]
[390531768,1760075447577,-502.77583653,0.00016986,2]
[390531770,1760075447586,-500.0,0.00016986,2]
[390531772,1760075447595,-151.0,0.00016986,2]
[390531774,1760075447604,-151.0,0.00016986,2]
[390531776,1760075447613,-161.091796,0.00016986,2]
[390531778,1760075447622,-500.0,0.00016986,2]
[390531780,1760075447631,-500.0,0.00016986,2]
[390531781,1760075447642,-151.0,0.00016986,2]
[390531783,1760075447652,-151.0,0.00016986,2]
[390531785,1760075447660,-500.0,0.00016986,2]
[390531787,1760075447670,-500.0,0.00016986,2]
[390531789,1760075447679,-500.0,0.00016986,2]
[390531792,1760075447691,-1034.78,0.00016986,2]
[390531794,1760075447700,-500.0,0.00016986,2]
[390531796,1760075447709,-500.0,0.00016986,2]
[390531797,1760075447719,-500.0,0.00016986,2]
[390531800,1760075447728,-500.0,0.00016986,2]
[390531801,1760075447737,-500.0,0.00016986,2]
[390531804,1760075447747,-151.0,0.00016986,2]
[390531806,1760075447756,-151.0,0.00016986,2]
[390531808,1760075447765,-500.0,0.00016986,2]
[390531809,1760075447774,-1248.6,0.00016986,2]
[390531812,1760075447784,-944.55,0.00016986,2]
[390531814,1760075447793,-500.0,0.00016986,2]
[390531816,1760075447803,-500.0,0.00016986,2]
[390531818,1760075447811,-151.0,0.00016986,2]
[390531820,1760075447820,-500.87475987,0.00016986,2]